[Event "Galicia-ch U18 2021"]
[Site "Padron"]
[Date "2021.04.04"]
[Round "7.5"]
[White "Bastos Gonzalez, Gonzalo"]
[Black "Alvarez Pampillon, Antonio"]
[Result "0-1"]
[ECO "A04"]
[WhiteElo "1685"]
[BlackElo "1860"]
[Annotator "NA RC"]
[PlyCount "178"]
[EventDate "2021.04.02"]
[EventType "swiss"]
[EventCountry "ESP"]
[SourceTitle "playchess.com"]
[Source "ChessBase"]
[SourceQuality "1"]
[TimeControl "5400+30"]

1. Nf3 {[%emt 0:00:00]} g6 {[%emt 0:00:00]} 2. g3 {[%emt 0:00:00]} Bg7 {[%emt 0:00:00]} 3. d4 {[%emt 0:00:00]} Nf6 {[%emt 0:00:00]} 4. Bg2 {[%emt 0:00:00]} O-O {[%emt 0:00:00]} 5. O-O {[%emt 0:00:00]} d6 {[%emt 0:00:03]} 6. a4 {[%emt 0:00:00]} c5 {[%emt 0:03:38]} 7. dxc5 {[%emt 0:01:06]} dxc5 {[%emt 0:00:01]} 8. Qxd8 {[%emt 0:00:17]} Rxd8 9. a5 {[%emt 0:00:16]} Nd5 {[%emt 0:16:19]} 10. Rd1 {[%emt 0:05:23]} Nc6 {[%emt 0:01:17]} 11. c3 {[%emt 0:03:45]} h6 {[%emt 0:23:46]} 12. Ne1 {[%emt 0:07:25]} Be6 {[%emt 0:11:55]} 13. Nd3 {[%emt 0:11:19]} Nc7 {[%emt 0:00:30]} 14. Re1 {[%emt 0:00:17]} Na6 {[%emt 0:00:56]} 15. Be3 {[%emt 0:01:25]} Bd5 {[%emt 0:07:49]} 16. Bh3 {[%emt 0:08:04]} Be4 {[%emt 0:01:37]} 17. Nxc5 {[%emt 0:06:27]} Nxc5 {[%emt 0:00:18]} 18. Bxc5 {[%emt 0:00:01]} b6 {[%emt 0:00:13]} 19. axb6 {[%emt 0:13:19]} axb6 {[%emt 0:00:01]} 20. Rxa8 {[%emt 0:00:09]} Rxa8 {[%emt 0:00:05]} 21. Ba3 {[%emt 0:00:10]} Rd8 {[%emt 0:10:38]} 22. Bg2 {[%emt 0:05:30]} Bxg2 {[%emt 0:00:40]} 23. Kxg2 {[%emt 0:00:01]} e6 {[%emt 0:00:38]} 24. Rc1 {[%emt 0:00:57]} Na5 {[%emt 0:01:24]} 25. c4 {[%emt 0:04:03]} Nb3 {[%emt 0:11:34]} 26. Rc2 {[%emt 0:00:27]} Rc8 {[%emt 0:00:16]} 27. e3 {[%emt 0:02:08]} Na1 {[%emt 0:00:21]} 28. Rc1 {[%emt 0:03:16]} Nb3 {[%emt 0:00:10]} 29. Rd1 {[%emt 0:12:39]} Rxc4 {[%emt 0:02:09]} 30. Rd6 {[%emt 0:00:09]} b5 {[%emt 0:03:15]} 31. Rb6 {[%emt 0:00:08]} Rc2 {[%emt 0:00:27]} 32. Rxb5 {[%emt 0:00:26]} Nc1 {[%emt 0:00:01]} 33. Rc5 {[%emt 0:08:07]} Rxc5 {[%emt 0:00:30]} 34. Bxc5 {[%emt 0:00:01]} Bxb2 {[%emt 0:00:09]} 35. Ba3 {[%emt 0:01:04]} Bxa3 {[%emt 0:00:05]} 36. Nxa3 {[%emt 0:00:02]} Nd3 {[%emt 0:00:13]} 37. Nc4 {[%emt 0:00:27]} Kg7 {[%emt 0:00:25]} 38. e4 {[%emt 0:01:01]} Kf6 {[%emt 0:03:11]} 39. Kf3 {[%emt 0:00:26]} g5 {[%emt 0:01:15]} 40. Ke3 {[%emt 0:00:48]} Nc5 {[%emt 0:00:46]} 41. f3 {[%emt 0:01:30]} h5 {[%emt 0:00:54]} 42. e5+ {[%emt 0:02:00]} Kf5 {[%emt 0:00:36]} 43. Nd6+ {[%emt 0:00:20]} Kg6 {[%emt 0:00:02]} 44. Ne4 {[%emt 0:01:44]} Nd7 {[%emt 0:01:14]} 45. f4 {[%emt 0:01:07]} g4 {[%emt 0:00:02]} 46. Kd4 {[%emt 0:01:40]} Kf5 {[%emt 0:01:34]} 47. Nd6+ {[%emt 0:00:53]} Kg6 {[%emt 0:00:01]} 48. Ne4 {[%emt 0:01:15]} Kg7 {[%emt 0:02:14]} 49. Ke3 Kg6 {[%emt 0:00:38]} 50. Kd4 {[%emt 0:01:24]} Nb6 {[%emt 0:00:28]} 51. Nd6 {[%emt 0:01:31]} Nd7 {[%emt 0:00:01]} 52. Ne4 {[%emt 0:00:07]} Nb8 {[%emt 0:00:55]} 53. Ng5 {[%emt 0:00:26]} Nc6+ {[%emt 0:00:24]} 54. Kc5 {[%emt 0:00:08]} Nxe5 {[%emt 0:00:32]} 55. Nxe6 {[%emt 0:01:40]} Nf3 {[%emt 0:00:30]} 56. Nd4 {[%emt 0:00:18]} Nxh2 {[%emt 0:00:13]} 57. Ne2 {[%emt 0:00:40]} Nf1 {[%emt 0:00:59]} 58. Kd4 {[%emt 0:00:06]} Kf5 {[%emt 0:00:28]} 59. Kd3 {[%emt 0:00:28]} f6 {[%emt 0:00:32]} 60. Kd4 {[%emt 0:00:10]} Nd2 {[%emt 0:00:14]} 61. Ke3 {[%emt 0:00:16]} Nb3 {[%emt 0:00:34]} 62. Kf2 {[%emt 0:01:01]} Nc5 {[%emt 0:00:26]} 63. Ke3 {[%emt 0:00:29]} Ne6 {[%emt 0:00:27]} 64. Nc3 {[%emt 0:01:03]} h4 {[%emt 0:00:49]} 65. gxh4 {[%emt 0:00:28]} Nxf4 {[%emt 0:00:01]} 66. Kf2 {[%emt 0:00:34]} Nh5 {[%emt 0:00:21]} 67. Nd5 {[%emt 0:00:28]} Ke5 {[%emt 0:00:15]} 68. Ne3 {[%emt 0:00:16]} f5 {[%emt 0:00:02]} 69. Ng2 {[%emt 0:00:43]} f4 {[%emt 0:00:14]} 70. Ne1 {[%emt 0:00:13]} Ke4 {[%emt 0:00:14]} 71. Kg2 {[%emt 0:00:53]} Nf6 {[%emt 0:01:23]} 72. Kf2 {[%emt 0:00:20]} Nd5 {[%emt 0:00:41]} 73. h5 {[%emt 0:00:13]} Kf5 {[%emt 0:00:41]} 74. h6 {[%emt 0:00:42]} Kg6 {[%emt 0:00:16]} 75. h7 {[%emt 0:00:08]} Kxh7 {[%emt 0:00:37]} 76. Nd3 {[%emt 0:00:14]} Kg6 {[%emt 0:00:38]} 77. Ne5+ {[%emt 0:00:44]} Kf5 {[%emt 0:00:14]} 78. Nf7 {[%emt 0:00:34]} Nc3 {[%emt 0:00:45]} 79. Nh6+ {[%emt 0:00:15]} Kg5 {[%emt 0:00:09]} 80. Nf7+ {[%emt 0:00:09]} Kh4 {[%emt 0:00:14]} 81. Ne5 {[%emt 0:00:13]} Kh3 {[%emt 0:01:22]} 82. Nd3 {[%emt 0:00:29]} Nd5 {[%emt 0:00:13]} 83. Ne1 {[%emt 0:01:08]} Nb4 {[%emt 0:00:20]} 84. Ng2 {[%emt 0:00:28]} Nd3+ {[%emt 0:00:07]} 85. Kf1 {[%emt 0:01:12]} g3 {[%emt 0:00:38]} 86. Kg1 {[%emt 0:00:43]} f3 {[%emt 0:00:18]} 87. Ne3 {[%emt 0:00:16]} Nc1 {[%emt 0:01:40]} 88. Kh1 {[%emt 0:00:40]} g2+ {[%emt 0:00:18]} 89. Nxg2 {[%emt 0:00:33]} fxg2+ {[%emt 0:00:01]} 0-1

[Event "Galicia-ch U18 2021"]
[Site "Padron"]
[Date "2021.04.04"]
[Round "7.6"]
[White "Reboredo Martinez, Claudio"]
[Black "Reza Salgado, Miguel"]
[Result "1-0"]
[ECO "B01"]
[WhiteElo "1880"]
[BlackElo "1718"]
[Annotator "NA RC"]
[PlyCount "113"]
[EventDate "2021.04.02"]
[EventType "swiss"]
[EventCountry "ESP"]
[SourceTitle "playchess.com"]
[Source "ChessBase"]
[SourceQuality "1"]
[TimeControl "5400+30"]

1. e4 {[%emt 0:00:00]} d5 {[%emt 0:00:00]} 2. exd5 {[%emt 0:00:00]} Qxd5 {[%emt 0:00:00]} 3. Nc3 {[%emt 0:00:00]} Qd6 {[%emt 0:00:02]} 4. Bc4 {[%emt 0:00:16]} Nf6 $14 {[%emt 0:00:48]} 5. Nge2 {[%emt 0:00:52]} c6 {[%emt 0:01:02]} 6. d3 {[%emt 0:00:07]} Bf5 {[%emt 0:03:57]} 7. Ng3 {[%emt 0:01:09]} Bg6 {[%emt 0:06:07]} 8. h4 {[%emt 0:05:09]} h5 {[%emt 0:00:56]} 9. Qf3 {[%emt 0:02:31]} e6 {[%emt 0:00:47]} 10. Bg5 {[%emt 0:03:10]} Nbd7 {[%emt 0:02:29]} 11. O-O-O {[%emt 0:02:11]} Qc7 {[%emt 0:00:20]} 12. Rhe1 {[%emt 0:10:04]} O-O-O {[%emt 0:01:30]} 13. Nge4 {[%emt 0:01:28]} Bf5 {[%emt 0:11:36]} 14. Qe3 {[%emt 0:17:28]} Qa5 {[%emt 0:01:32]} 15. Qg3 {[%emt 0:03:17]} Be7 {[%emt 0:06:01]} 16. Nd6+ {[%emt 0:02:28]} Bxd6 {[%emt 0:00:22]} 17. Qxd6 {[%emt 0:00:02]} Nb6 {[%emt 0:03:31]} 18. Qf4 {[%emt 0:02:45]} Nxc4 {[%emt 0:06:10]} 19. Qxc4 {[%emt 0:00:35]} Rd7 {[%emt 0:14:04]} 20. Ne4 {[%emt 0:09:57]} Bxe4 {[%emt 0:02:03]} 21. dxe4 {[%emt 0:01:54]} Rhd8 {[%emt 0:01:03]} 22. Bxf6 {[%emt 0:10:59]} gxf6 {[%emt 0:00:15]} 23. c3 {[%emt 0:00:30]} f5 {[%emt 0:04:05]} 24. Rxd7 {[%emt 0:08:35]} Rxd7 {[%emt 0:01:55]} 25. a3 {[%emt 0:00:39]} Qe5 {[%emt 0:01:32]} 26. Qe2 {[%emt 0:02:52]} Qf4+ {[%emt 0:01:47]} 27. Qe3 {[%emt 0:01:14]} Qxe3+ {[%emt 0:08:25]} 28. Rxe3 {[%emt 0:00:05]} fxe4 {[%emt 0:01:23]} 29. Rxe4 {[%emt 0:00:05]} Kd8 {[%emt 0:00:26]} 30. c4 {[%emt 0:08:24]} Ke7 {[%emt 0:00:46]} 31. Kc2 {[%emt 0:00:48]} f5 {[%emt 0:00:59]} 32. Re3 {[%emt 0:00:29]} Rd4 {[%emt 0:00:30]} 33. Rb3 {[%emt 0:03:33]} b6 {[%emt 0:00:28]} 34. c5 {[%emt 0:00:22]} Rc4+ {[%emt 0:02:13]} 35. Rc3 {[%emt 0:00:07]} Rxc3+ {[%emt 0:01:09]} 36. Kxc3 {[%emt 0:00:02]} bxc5 {[%emt 0:00:10]} 37. Kc4 {[%emt 0:00:14]} Kd6 {[%emt 0:00:10]} 38. f4 {[%emt 0:00:04]} e5 {[%emt 0:05:59]} 39. fxe5+ {[%emt 0:00:06]} Kxe5 {[%emt 0:00:05]} 40. Kxc5 {[%emt 0:00:23]} Kf4 {[%emt 0:00:24]} 41. Kxc6 {[%emt 0:00:16]} Kg3 {[%emt 0:00:12]} 42. Kd5 {[%emt 0:00:13]} Kxh4 {[%emt 0:06:49]} 43. Ke5 {[%emt 0:02:54]} Kg4 {[%emt 0:02:42]} 44. b4 {[%emt 0:02:48]} f4 {[%emt 0:00:04]} 45. a4 {[%emt 0:00:54]} f3 {[%emt 0:00:15]} 46. gxf3+ {[%emt 0:00:01]} Kxf3 {[%emt 0:01:06]} 47. b5 {[%emt 0:00:44]} h4 {[%emt 0:00:04]} 48. a5 {[%emt 0:00:11]} h3 {[%emt 0:00:45]} 49. b6 {[%emt 0:00:30]} axb6 {[%emt 0:00:53]} 50. a6 {[%emt 0:00:17]} h2 {[%emt 0:00:44]} 51. a7 {[%emt 0:00:15]} Kf2 {[%emt 0:00:46]} 52. a8=Q {[%emt 0:00:06]} Kg1 {[%emt 0:00:21]} 53. Qg8+ {[%emt 0:00:22]} Kf2 {[%emt 0:00:25]} 54. Qh7 {[%emt 0:00:20]} Kg2 {[%emt 0:00:29]} 55. Qc2+ {[%emt 0:00:42]} Kg1 {[%emt 0:00:07]} 56. Kf4 {[%emt 0:01:23]} h1=Q {[%emt 0:03:18]} 57. Kg3 {[%emt 0:00:11]} 1-0

[Event "Galicia-ch U18 2021"]
[Site "Padron"]
[Date "2021.04.04"]
[Round "8.1"]
[White "Rodriguez Ferreiros, Andres"]
[Black "Ferreno Sanmartin, Angel"]
[Result "1-0"]
[ECO "C90"]
[WhiteElo "2123"]
[BlackElo "2152"]
[Annotator "NA"]
[PlyCount "87"]
[EventDate "2021.04.02"]
[EventType "swiss"]
[EventCountry "ESP"]
[SourceTitle "playchess.com"]
[Source "ChessBase"]
[SourceQuality "1"]
[TimeControl "5400+30"]

1. e4 {[%emt 0:00:00]} e5 {[%emt 0:00:00]} 2. Nf3 {[%emt 0:00:00]} Nc6 {[%emt 0:00:00]} 3. Bb5 {[%emt 0:00:59]} a6 {[%emt 0:00:00]} 4. Ba4 {[%emt 0:00:14]} Nf6 {[%emt 0:00:06]} 5. d3 {[%emt 0:05:15]} b5 {[%emt 0:00:36]} 6. Bb3 {[%emt 0:00:12]} Be7 {[%emt 0:00:35]} 7. O-O {[%emt 0:00:55]} O-O {[%emt 0:01:07]} 8. Re1 {[%emt 0:02:13]} d6 {[%emt 0:00:15]} 9. c3 {[%emt 0:01:40]} Na5 {[%emt 0:00:47]} 10. Bc2 {[%emt 0:01:03]} c5 {[%emt 0:00:39]} 11. d4 {[%emt 0:02:13]} exd4 {[%emt 0:08:00]} 12. cxd4 {[%emt 0:01:16]} Bg4 {[%emt 0:03:47]} 13. Nbd2 {[%emt 0:07:11]} cxd4 $11 {[%emt 0:03:00]} 14. h3 {[%emt 0:02:17]} Bh5 {[%emt 0:02:37]} 15. g4 {[%emt 0:02:18]} d3 {[%emt 0:01:55]} 16. Bxd3 {[%emt 0:01:24]} Bg6 {[%emt 0:00:06]} 17. Bf1 {[%emt 0:11:30]} Rc8 {[%emt 0:16:00]} 18. Nd4 {[%emt 0:05:48]} d5 {[%emt 0:04:24]} 19. e5 {[%emt 0:04:31]} Ne4 {[%emt 0:00:38]} 20. Nxe4 {[%emt 0:02:28]} dxe4 {[%emt 0:00:45]} 21. Nf5 {[%emt 0:06:03]} Bxf5 {[%emt 0:15:36]} 22. gxf5 {[%emt 0:01:22]} Qxd1 {[%emt 0:02:02]} 23. Rxd1 {[%emt 0:00:01]} Nc4 {[%emt 0:00:26]} 24. Rd7 {[%emt 0:06:41]} Bh4 {[%emt 0:03:51]} 25. Bxc4 {[%emt 0:04:01]} Rxc4 {[%emt 0:00:23]} 26. Be3 {[%emt 0:01:04]} Re8 {[%emt 0:02:39]} 27. Rad1 {[%emt 0:03:39]} h6 {[%emt 0:02:19]} 28. R1d5 {[%emt 0:02:17]} Re7 {[%emt 0:13:20]} 29. Rd8+ {[%emt 0:01:43]} Kh7 {[%emt 0:00:05]} 30. Ra8 {[%emt 0:00:10]} Rec7 {[%emt 0:01:17]} 31. Rxa6 {[%emt 0:00:53]} b4 {[%emt 0:01:06]} 32. b3 {[%emt 0:01:31]} Rc2 {[%emt 0:01:25]} 33. Rd4 {[%emt 0:02:24]} Re2 {[%emt 0:01:07]} 34. Rc4 {[%emt 0:00:34]} Rd7 {[%emt 0:01:13]} 35. Kf1 {[%emt 0:01:03]} Rb2 {[%emt 0:00:32]} 36. Rxe4 {[%emt 0:00:17]} Be7 {[%emt 0:01:10]} 37. f6 {[%emt 0:01:38]} gxf6 {[%emt 0:02:19]} 38. exf6 {[%emt 0:00:10]} Bd8 {[%emt 0:03:42]} 39. Rxb4 {[%emt 0:00:31]} Rd1+ {[%emt 0:00:33]} 40. Kg2 {[%emt 0:00:09]} Rd3 {[%emt 0:02:47]} 41. Kf3 {[%emt 0:00:12]} h5 {[%emt 0:00:30]} 42. Rb5 {[%emt 0:01:43]} Kg6 {[%emt 0:00:35]} 43. Rg5+ {[%emt 0:00:13]} Kh6 {[%emt 0:00:26]} 44. Rd5+ {[%emt 0:00:33]} 1-0

[Event "Galicia-ch U18 2021"]
[Site "Padron"]
[Date "2021.04.04"]
[Round "8.2"]
[White "Alvarez Pampillon, Antonio"]
[Black "Bringas Gomez, Artai"]
[Result "1/2-1/2"]
[ECO "A00"]
[WhiteElo "1860"]
[BlackElo "2120"]
[Annotator "ChessBase"]
[PlyCount "63"]
[EventDate "2021.04.02"]
[EventType "swiss"]
[EventCountry "ESP"]
[SourceTitle "playchess.com"]
[Source "ChessBase"]
[SourceQuality "1"]
[TimeControl "5400+30"]

1. g3 {[%emt 0:00:00]} d5 {[%emt 0:01:08]} 2. c4 {[%emt 0:00:00]} c6 {[%emt 0:00:09]} 3. Bg2 {[%emt 0:00:00]} e5 {[%emt 0:00:05]} 4. cxd5 {[%emt 0:04:09]} cxd5 {[%emt 0:00:10]} 5. d4 {[%emt 0:00:02]} e4 {[%emt 0:00:31]} 6. Nh3 {[%emt 0:03:19]} Nc6 {[%emt 0:03:24]} 7. O-O {[%emt 0:00:33]} Qb6 {[%emt 0:02:38]} 8. Nc3 {[%emt 0:02:59]} Be6 {[%emt 0:06:18]} 9. Nf4 {[%emt 0:05:30]} Nf6 {[%emt 0:00:58]} 10. e3 {[%emt 0:14:12]} Be7 {[%emt 0:02:05]} 11. Bd2 {[%emt 0:05:48]} O-O {[%emt 0:00:53]} 12. Na4 {[%emt 0:03:45]} Qd8 {[%emt 0:17:33]} 13. Nxe6 {[%emt 0:03:22]} fxe6 {[%emt 0:00:19]} 14. Nc5 {[%emt 0:00:03]} Bxc5 {[%emt 0:01:38]} 15. dxc5 {[%emt 0:00:02]} Nd7 {[%emt 0:00:27]} 16. b4 {[%emt 0:00:35]} Nce5 {[%emt 0:00:46]} 17. f3 {[%emt 0:00:47]} Nxf3+ {[%emt 0:13:03]} 18. Bxf3 {[%emt 0:00:10]} exf3 {[%emt 0:00:07]} 19. Bc3 {[%emt 0:20:49]} Qg5 {[%emt 0:01:52]} 20. Rxf3 {[%emt 0:00:05]} Rxf3 {[%emt 0:03:52]} 21. Qxf3 {[%emt 0:00:03]} Rf8 {[%emt 0:03:47]} 22. Qe2 {[%emt 0:01:32]} Ne5 {[%emt 0:05:26]} 23. Rf1 {[%emt 0:17:26]} Rxf1+ {[%emt 0:00:27]} 24. Kxf1 {[%emt 0:00:03]} Qf5+ {[%emt 0:00:32]} 25. Kg1 {[%emt 0:07:13]} Nf3+ {[%emt 0:07:21]} 26. Kg2 {[%emt 0:00:57]} Ng5 {[%emt 0:00:07]} 27. Kg1 {[%emt 0:02:55]} Qe4 {[%emt 0:02:08]} 28. h4 {[%emt 0:00:26]} d4 {[%emt 0:03:25]} 29. Bxd4 {[%emt 0:01:31]} Nf3+ {[%emt 0:00:34]} 30. Kf2 {[%emt 0:01:45]} Nxd4 {[%emt 0:00:28]} 31. exd4 {[%emt 0:00:02]} Qxd4+ {[%emt 0:00:12]} 32. Qe3 {[%emt 0:01:26]} 1/2-1/2

[Event "Galicia-ch U18 2021"]
[Site "Padron"]
[Date "2021.04.04"]
[Round "8.3"]
[White "Buitron Ramil, David"]
[Black "Diaz Gomez, Mateo"]
[Result "1/2-1/2"]
[ECO "B33"]
[WhiteElo "1934"]
[BlackElo "1776"]
[Annotator "ChessBase"]
[PlyCount "32"]
[EventDate "2021.04.02"]
[EventType "swiss"]
[EventCountry "ESP"]
[SourceTitle "playchess.com"]
[Source "ChessBase"]
[SourceQuality "1"]
[TimeControl "5400+30"]

1. e4 {[%emt 0:00:00]} c5 {[%emt 0:03:57]} 2. Nf3 {[%emt 0:00:00]} Nc6 {[%emt 0:00:04]} 3. d4 {[%emt 0:00:00]} cxd4 {[%emt 0:00:05]} 4. Nxd4 {[%emt 0:00:00]} Nf6 {[%emt 0:00:09]} 5. Nc3 {[%emt 0:00:00]} e5 {[%emt 0:00:04]} 6. Ndb5 {[%emt 0:00:00]} d6 {[%emt 0:00:10]} 7. Bg5 {[%emt 0:00:00]} a6 {[%emt 0:00:07]} 8. Na3 {[%emt 0:00:00]} b5 {[%emt 0:00:09]} 9. Bxf6 {[%emt 0:00:01]} gxf6 {[%emt 0:00:09]} 10. Nd5 {[%emt 0:00:03]} Bg7 {[%emt 0:00:08]} 11. c3 {[%emt 0:00:07]} f5 {[%emt 0:00:21]} 12. exf5 {[%emt 0:00:15]} Bxf5 {[%emt 0:00:20]} 13. Nc2 {[%emt 0:00:02]} O-O {[%emt 0:00:13]} 14. Nce3 {[%emt 0:00:04]} Be6 {[%emt 0:00:06]} 15. Bd3 {[%emt 0:00:22]} f5 {[%emt 0:00:09]} 16. Qh5 {[%emt 0:00:07]} e4 {[%emt 0:00:57]} 1/2-1/2

[Event "Galicia-ch U18 2021"]
[Site "Padron"]
[Date "2021.04.04"]
[Round "8.4"]
[White "Martinez Montes, Juan Manuel"]
[Black "Perez Dapoza, Cesar"]
[Result "1-0"]
[ECO "B43"]
[WhiteElo "1873"]
[BlackElo "1885"]
[Annotator "NA"]
[PlyCount "49"]
[EventDate "2021.04.02"]
[EventType "swiss"]
[EventCountry "ESP"]
[SourceTitle "playchess.com"]
[Source "ChessBase"]
[SourceQuality "1"]
[TimeControl "5400+30"]

1. e4 {[%emt 0:00:00]} c5 {[%emt 0:00:00]} 2. Nf3 {[%emt 0:00:00]} e6 {[%emt 0:00:50]} 3. d4 {[%emt 0:00:00]} cxd4 {[%emt 0:00:15]} 4. Nxd4 {[%emt 0:00:00]} a6 $11 {[%emt 0:00:00]} 5. Nc3 {[%emt 0:00:21]} b5 {[%emt 0:01:07]} 6. g4 {[%emt 0:00:10]} b4 {[%emt 0:02:50]} 7. Nce2 {[%emt 0:00:29]} Bb7 {[%emt 0:03:38]} 8. Bg2 {[%emt 0:00:07]} Nf6 {[%emt 0:03:07]} 9. Ng3 {[%emt 0:00:06]} Nc6 {[%emt 0:01:19]} 10. g5 {[%emt 0:00:21]} Ng8 {[%emt 0:02:10]} 11. O-O {[%emt 0:00:45]} Be7 {[%emt 0:07:25]} 12. Nxc6 {[%emt 0:05:46]} Bxc6 {[%emt 0:04:13]} 13. Nh5 {[%emt 0:02:40]} g6 {[%emt 0:05:51]} 14. Qd4 {[%emt 0:00:54]} f6 {[%emt 0:00:01]} 15. Nxf6+ {[%emt 0:04:24]} Nxf6 {[%emt 0:00:55]} 16. gxf6 {[%emt 0:00:12]} Bxf6 {[%emt 0:00:27]} 17. Qxb4 {[%emt 0:00:17]} Rb8 {[%emt 0:05:28]} 18. Qd6 {[%emt 0:00:29]} Rb5 {[%emt 0:01:21]} 19. c4 {[%emt 0:00:36]} Be5 {[%emt 0:00:56]} 20. Qd3 {[%emt 0:00:19]} Rb7 {[%emt 0:36:31]} 21. Rb1 {[%emt 0:00:53]} O-O {[%emt 0:02:00]} 22. f4 {[%emt 0:00:42]} Bg7 {[%emt 0:03:12]} 23. b4 {[%emt 0:00:13]} d5 {[%emt 0:00:56]} 24. exd5 {[%emt 0:02:04]} exd5 {[%emt 0:00:14]} 25. b5 1-0

[Event "Galicia-ch U18 2021"]
[Site "Padron"]
[Date "2021.04.04"]
[Round "8.5"]
[White "Gonzalez Taboada, Lorenzo"]
[Black "Reboredo Martinez, Claudio"]
[Result "0-1"]
[ECO "B71"]
[WhiteElo "1609"]
[BlackElo "1880"]
[Annotator "NA"]
[PlyCount "154"]
[EventDate "2021.04.02"]
[EventType "swiss"]
[EventCountry "ESP"]
[SourceTitle "playchess.com"]
[Source "ChessBase"]
[SourceQuality "1"]
[TimeControl "5400+30"]

1. e4 {[%emt 0:00:00]} c5 {[%emt 0:00:00]} 2. Nf3 {[%emt 0:00:00]} d6 {[%emt 0:00:00]} 3. d4 {[%emt 0:00:00]} cxd4 {[%emt 0:00:00]} 4. Nxd4 {[%emt 0:00:00]} Nf6 {[%emt 0:00:04]} 5. Nc3 {[%emt 0:00:07]} g6 {[%emt 0:00:02]} 6. f4 {[%emt 0:00:07]} Nc6 $11 {[%emt 0:00:16]} 7. Nf3 {[%emt 0:00:04]} Bg7 {[%emt 0:00:55]} 8. Bd3 {[%emt 0:00:12]} O-O {[%emt 0:00:21]} 9. O-O {[%emt 0:00:32]} a6 {[%emt 0:01:02]} 10. a4 {[%emt 0:00:06]} Nb4 {[%emt 0:01:40]} 11. Kh1 {[%emt 0:06:55]} Nxd3 {[%emt 0:00:42]} 12. Qxd3 {[%emt 0:01:15]} Nd7 {[%emt 0:02:50]} 13. Bd2 {[%emt 0:02:49]} Nc5 {[%emt 0:00:56]} 14. Qe2 {[%emt 0:00:24]} a5 {[%emt 0:00:09]} 15. Rfd1 {[%emt 0:05:55]} Bd7 {[%emt 0:02:44]} 16. b3 {[%emt 0:01:36]} Bc6 {[%emt 0:02:56]} 17. Rac1 {[%emt 0:01:39]} Bxc3 {[%emt 0:03:47]} 18. Bxc3 {[%emt 0:00:02]} Nxe4 {[%emt 0:00:19]} 19. Bd4 {[%emt 0:00:38]} Qd7 {[%emt 0:04:00]} 20. Qe3 {[%emt 0:02:14]} Qg4 {[%emt 0:16:05]} 21. Re1 {[%emt 0:02:25]} Rae8 {[%emt 0:03:41]} 22. Re2 {[%emt 0:08:23]} Nf6 {[%emt 0:02:49]} 23. Ng5 {[%emt 0:15:11]} Nh5 {[%emt 0:13:17]} 24. Rf2 {[%emt 0:02:11]} h6 {[%emt 0:06:17]} 25. Qh3 {[%emt 0:01:01]} Qxh3 {[%emt 0:02:27]} 26. Nxh3 {[%emt 0:00:03]} Ng7 {[%emt 0:00:15]} 27. Re2 {[%emt 0:00:39]} Nf5 {[%emt 0:00:08]} 28. Bb2 {[%emt 0:01:30]} Rc8 {[%emt 0:02:01]} 29. Nf2 {[%emt 0:01:44]} h5 {[%emt 0:00:51]} 30. Nd1 {[%emt 0:01:35]} b5 {[%emt 0:04:08]} 31. axb5 {[%emt 0:01:42]} Bxb5 {[%emt 0:00:05]} 32. c4 {[%emt 0:00:06]} Bd7 {[%emt 0:00:29]} 33. Ne3 {[%emt 0:00:12]} Nxe3 {[%emt 0:01:31]} 34. Rxe3 {[%emt 0:00:09]} Be6 {[%emt 0:00:38]} 35. Ra1 {[%emt 0:01:07]} Ra8 {[%emt 0:01:23]} 36. Kg1 {[%emt 0:00:43]} Rfb8 {[%emt 0:00:20]} 37. Ra4 {[%emt 0:08:23]} Kf8 {[%emt 0:00:18]} 38. Bc3 {[%emt 0:02:15]} Rb7 {[%emt 0:04:29]} 39. Rxa5 {[%emt 0:01:25]} Rab8 {[%emt 0:02:30]} 40. Ra3 {[%emt 0:00:34]} Rxb3 {[%emt 0:00:32]} 41. Rxb3 {[%emt 0:00:10]} Rxb3 {[%emt 0:00:01]} 42. Bg7+ {[%emt 0:00:37]} Kxg7 {[%emt 0:00:02]} 43. Rxb3 {[%emt 0:00:08]} Bxc4 {[%emt 0:00:03]} 44. Rc3 {[%emt 0:00:13]} Bd5 {[%emt 0:00:40]} 45. Kf2 {[%emt 0:00:22]} Kf6 {[%emt 0:00:20]} 46. Rd3 {[%emt 0:02:43]} Be4 {[%emt 0:00:31]} 47. Ra3 {[%emt 0:02:36]} d5 {[%emt 0:04:01]} 48. g3 {[%emt 0:02:46]} g5 {[%emt 0:00:37]} 49. Ke3 {[%emt 0:02:33]} gxf4+ {[%emt 0:00:30]} 50. gxf4 {[%emt 0:01:30]} Bg6 {[%emt 0:00:41]} 51. Ra4 {[%emt 0:02:45]} Kf5 {[%emt 0:00:49]} 52. Kf3 {[%emt 0:00:35]} f6 {[%emt 0:00:44]} 53. Ra5 {[%emt 0:00:51]} e6 {[%emt 0:00:21]} 54. Rb5 {[%emt 0:01:08]} Be8 {[%emt 0:03:09]} 55. Ra5 {[%emt 0:02:07]} e5 {[%emt 0:02:02]} 56. fxe5 {[%emt 0:03:22]} fxe5 {[%emt 0:00:09]} 57. Ra8 {[%emt 0:01:44]} Bg6 {[%emt 0:01:55]} 58. Ra5 {[%emt 0:01:18]} d4 {[%emt 0:00:29]} 59. Rc5 {[%emt 0:00:49]} Bf7 {[%emt 0:00:34]} 60. Ra5 {[%emt 0:01:10]} Bb3 {[%emt 0:01:32]} 61. Rb5 {[%emt 0:06:29]} Bd1+ {[%emt 0:00:30]} 62. Kf2 {[%emt 0:00:19]} Kf4 {[%emt 0:01:40]} 63. Rb4 {[%emt 0:04:41]} Ke4 {[%emt 0:03:25]} 64. Rb5 {[%emt 0:01:34]} Ba4 {[%emt 0:01:39]} 65. Rb4 {[%emt 0:00:34]} Bc2 {[%emt 0:01:52]} 66. Rb5 {[%emt 0:01:23]} Bd3 {[%emt 0:00:17]} 67. Rb8 {[%emt 0:00:22]} Bc4 {[%emt 0:01:13]} 68. Rc8 {[%emt 0:02:23]} Kd3 {[%emt 0:01:24]} 69. Rc5 {[%emt 0:00:23]} e4 {[%emt 0:01:38]} 70. Rxh5 {[%emt 0:00:02]} Kd2 {[%emt 0:00:39]} 71. Rc5 {[%emt 0:01:05]} e3+ {[%emt 0:00:38]} 72. Kf3 {[%emt 0:00:20]} Be2+ {[%emt 0:00:19]} 73. Kg2 {[%emt 0:00:55]} d3 {[%emt 0:03:23]} 74. h4 {[%emt 0:00:32]} Bg4 {[%emt 0:00:45]} 75. Ra5 {[%emt 0:00:22]} e2 {[%emt 0:00:25]} 76. Ra2+ {[%emt 0:00:45]} Ke3 {[%emt 0:00:47]} 77. Ra1 {[%emt 0:00:10]} d2 0-1